bitfinex-derivatives/quotes_ETHF0:USTF0_20250621
["timestamp","ask_amount","ask_price","bid_price","bid_amount"]
[1750503459236,7.30808,2438.3,2438.2,3.2078]
[1750503459436,8.60428,2438.3,2438.2,3.2078]
[1750503460232,8.60428,2438.3,2438.2,4.02791]
[1750503461937,9.29148,2438.3,2438.2,4.02791]
[1750503465834,8.60428,2438.3,2438.2,4.02791]
[1750503466839,7.7842,2438.3,2438.2,4.02791]
[1750503467542,6.488,2438.3,2438.2,4.02791]
[1750503468145,0.82003,2438.5,2438.4,0.82004]
[1750503468445,32.36703,2438.5,2438.4,0.82004]
[1750503472156,0.81997,2438.7,2438.6,0.81996]
[1750503472351,32.36397,2438.7,2438.6,7.30710539]
[1750503472547,0.81998,2438.6,2438.5,0.81999]
[1750503473049,0.81998,2438.6,2438.5,7.30713539]
[1750503473252,32.36398,2438.6,2438.5,7.30713539]
[1750503473452,0.81998,2438.6,2438.5,7.30713539]
[1750503473652,8.5,2439.0,2438.6,0.81998]
[1750503473852,0.81994,2438.7,2438.6,1.48528]
[1750503474053,7.30888,2438.9,2438.8,6.48714539]
[1750503474257,0.81992,2438.8,2438.7,0.81993]
[1750503474457,32.36292,2438.8,2438.7,0.81993]
[1750503474753,32.36292,2438.8,2438.7,7.30707539]
[1750503476451,0.81994,2438.7,2438.6,1.48526]
[1750503476860,0.81994,2438.7,2438.6,7.97240539]
[1750503478559,0.81994,2438.7,2438.6,11.18020539]
[1750503480871,0.81993,2438.8,2438.7,0.81993]
[1750503481069,32.35593,2438.8,2438.7,7.30707539]
[1750503481369,32.35593,2438.8,2438.7,0.81993]
[1750503481561,32.35593,2438.8,2438.7,7.30707539]
[1750503482056,0.81993,2438.8,2438.7,7.30707539]
[1750503482265,32.35493,2438.8,2438.7,6.48714539]
[1750503482766,0.81993,2438.8,2438.7,6.48714539]
[1750503482955,32.35393,2438.8,2438.7,6.48714539]
[1750503483766,0.81993,2438.8,2438.7,6.48714539]
[1750503484066,32.35293,2438.8,2438.7,7.17004539]
[1750503486054,32.35293,2438.8,2438.7,7.23852138]
[1750503486468,0.81993,2438.8,2438.7,7.23852138]
[1750503487064,32.34993,2438.8,2438.7,7.23852138]
[1750503487863,0.81993,2438.8,2438.7,7.23852138]
[1750503488063,32.33593,2438.8,2438.7,7.23852138]
[1750503488465,33.49680847,2438.8,2438.7,7.23852138]
[1750503488769,33.49680847,2438.8,2438.7,0.75137599]
[1750503489360,34.13740847,2438.8,2438.7,0.06847599]
[1750503489557,0.81994,2438.7,2438.4,0.82003]
[1750503489762,25.86098,2438.6,2438.5,6.48714539]
[1750503489966,25.86098,2438.6,2438.5,7.13954539]
[1750503490470,25.86098,2438.6,2438.5,7.95955539]
[1750503490670,25.041,2438.6,2438.5,7.95955539]
[1750503490865,0.81997,2438.7,2438.6,0.81998]
[1750503491066,32.33397,2438.7,2438.6,1.49348]
[1750503491266,32.33397,2438.7,2438.6,7.98062539]
[1750503492069,32.33297,2438.7,2438.6,7.98062539]
[1750503492764,32.33297,2438.7,2438.6,7.16064539]
[1750503493469,32.33297,2438.7,2438.6,7.98062539]
[1750503493768,32.33297,2438.7,2438.6,7.16064539]
[1750503494474,0.81997,2438.7,2438.6,7.16064539]
[1750503494672,32.33197,2438.7,2438.6,7.16064539]
[1750503495569,32.33197,2438.7,2438.6,7.98062539]
[1750503495768,1.46353,2438.8,2438.6,7.16064539]
[1750503495968,0.81993,2438.8,2438.7,6.48714539]
[1750503496169,0.81994,2438.7,2438.6,0.6735]
[1750503496676,0.81994,2438.7,2438.6,7.16064539]
[1750503497375,0.81994,2438.7,2438.6,7.98062539]
[1750503498274,0.81994,2438.7,2438.6,7.16064539]
[1750503499075,0.81998,2438.6,2438.5,1.47241]
[1750503499279,25.85398,2438.6,2438.5,7.13954539]
[1750503499582,25.85398,2438.6,2438.5,7.95955539]
[1750503500777,31.508,2438.6,2438.5,7.95955539]
[1750503502773,4.0277,2438.9,2438.5,8.78646851]
[1750503503076,6.474,2438.7,2438.6,2.86138]
[1750503503273,6.474,2438.7,2438.6,2.92985599]
[1750503503576,6.474,2438.7,2438.6,9.41700138]
[1750503508781,3.2078,2439.0,2438.9,0.81988]
[1750503508985,35.87318712,2439.0,2438.9,7.30702539]
[1750503509982,36.69302712,2439.0,2438.9,7.30702539]
[1750503512294,36.69302712,2439.0,2438.9,6.48714539]
[1750503512478,36.69302712,2439.0,2438.9,7.30702539]
[1750503513886,36.69302712,2439.0,2438.9,6.48714539]
[1750503514087,11.66402712,2439.0,2438.9,6.48714539]
[1750503514282,36.68902712,2439.0,2438.9,6.48714539]
[1750503515388,11.66402712,2439.0,2438.9,6.48714539]
[1750503515590,36.68802712,2439.0,2438.9,6.55562138]
[1750503515788,36.68802712,2439.0,2438.9,7.37550138]
[1750503515989,33.48022712,2439.0,2438.9,7.37550138]
[1750503516189,33.48022712,2439.0,2438.9,6.55562138]
[1750503516490,33.48022712,2439.0,2438.9,7.37550138]
[1750503517185,7.63638712,2439.0,2438.9,7.37550138]
[1750503517384,0.81984,2439.0,2438.9,7.37550138]
[1750503517683,3.2078,2439.1,2439.0,0.81984]
[1750503517890,3.2078,2439.1,2439.0,7.30698539]
[1750503518092,3.2078,2439.1,2439.0,7.98418539]
[1750503518093,28.2288,2439.1,2439.0,7.98418539]
[1750503519185,25.021,2439.1,2439.0,7.98418539]
[1750503519888,0.81979,2439.2,2439.1,0.81981]
[1750503520090,32.30279,2439.2,2439.1,7.30695539]
[1750503520290,32.30279,2439.2,2439.1,7.97065539]
[1750503522780,32.30279,2439.2,2439.1,7.15084539]
[1750503523390,32.30279,2439.2,2439.1,7.97065539]
[1750503528587,32.29479,2439.2,2439.1,7.97065539]
[1750503530690,32.29479,2439.2,2439.1,8.03913138]
[1750503540009,0.81978,2439.3,2439.2,0.81976]
[1750503540310,33.58548,2439.3,2439.2,7.30692539]
[1750503540508,33.58548,2439.3,2439.2,0.81978]
[1750503541609,8.58148,2439.3,2439.2,0.81978]
[1750503541805,33.58448,2439.3,2439.2,0.81978]
[1750503542213,32.28478,2439.3,2439.2,7.30692539]
[1750503542814,3.2078,2439.4,2439.3,0.81974]
[1750503543004,35.83187327,2439.4,2439.3,7.30688539]
[1750503543207,4.36787327,2439.4,2439.3,7.30688539]
[1750503543497,35.83187327,2439.4,2439.3,7.30688539]
[1750503543710,36.65158327,2439.4,2439.3,7.30688539]
[1750503545015,36.65158327,2439.4,2439.3,6.48714539]
[1750503545409,36.65158327,2439.4,2439.3,7.30688539]
[1750503545908,4.36787327,2439.4,2439.3,7.30688539]
[1750503546113,36.64958327,2439.4,2439.3,7.30688539]
[1750503546614,5.18758327,2439.4,2439.3,7.30688539]
[1750503546803,35.82987327,2439.4,2439.3,7.30688539]
[1750503547009,36.64958327,2439.4,2439.3,7.30688539]
[1750503547715,35.82787327,2439.4,2439.3,7.30688539]
[1750503548017,4.36787327,2439.4,2439.3,8.95380851]
[1750503548219,24.998,2439.5,2439.4,0.81971]
[1750503548514,25.81764,2439.6,2439.5,0.81967]
[1750503548717,1.97963902,2439.6,2439.5,0.81967]
[1750503548906,26.15699902,2439.6,2439.5,7.30681539]
[1750503549314,26.97663902,2439.6,2439.5,7.30681539]
[1750503549515,24.997,2439.6,2439.5,7.30681539]
[1750503549715,25.81664,2439.6,2439.5,7.30681539]
[1750503551717,24.997,2439.6,2439.5,7.30681539]
[1750503552306,9.6588,2439.7,2439.6,0.81964]
[1750503552512,34.6538,2439.7,2439.6,7.30678539]
[1750503553016,28.2018,2439.7,2439.6,7.30678539]
[1750503553910,29.02141,2439.7,2439.6,7.30678539]
[1750503555318,28.2018,2439.7,2439.6,7.30678539]
[1750503556015,3.2078,2439.7,2439.6,7.30678539]
[1750503556214,0.81955,2439.9,2439.8,0.81954]
[1750503556412,1.97720978,2439.9,2439.8,7.30668539]
[1750503556613,25.80955,2439.9,2439.8,0.81954]
[1750503557016,25.80855,2439.9,2439.8,7.30668539]
[1750503559220,25.80855,2439.9,2439.8,6.48714539]
[1750503559420,27.90125,2439.9,2439.8,6.48714539]
[1750503559723,27.90125,2439.9,2439.8,7.30671539]
[1750503560923,27.90125,2439.9,2439.4,5.96096]
[1750503560924,0.81963,2439.7,2439.6,0.81964]
[1750503561126,25.80663,2439.7,2439.6,0.81964]
[1750503561425,25.80661,2439.7,2439.6,6.48714539]
[1750503563522,25.80661,2439.7,2439.6,7.30678539]
[1750503566730,24.987,2439.7,2439.6,7.30678539]
[1750503567920,0.81961,2439.7,2439.6,7.30678539]
[1750503568125,0.7039,2439.9,2439.8,0.81957]
[1750503568325,25.6839,2439.9,2439.8,6.55562138]
[1750503568526,26.50344,2439.9,2439.8,6.55562138]
[1750503568727,27.79344,2439.9,2439.8,6.55562138]
[1750503571227,27.79344,2439.9,2439.8,7.37519138]
[1750503571726,27.79344,2439.9,2439.8,6.55562138]
[1750503572830,27.79344,2439.9,2439.8,7.37519138]
[1750503573531,28.95075005,2439.9,2439.8,7.37519138]
[1750503574630,28.9510179,2439.9,2439.8,7.37519138]
[1750503578435,28.9510179,2439.9,2439.8,6.55562138]
[1750503579934,28.9510179,2439.9,2439.8,7.37519138]
[1750503582845,28.9510179,2439.9,2439.8,6.55562138]
[1750503583840,28.9510179,2439.9,2439.8,7.37519138]
[1750503585044,28.9510179,2439.9,2439.8,6.55562138]
[1750503585438,28.9510179,2439.9,2439.8,0.06847599]
[1750503586138,2.04902,2439.8,2439.1,3.9152]
[1750503586436,1.23506694,2439.3,2439.2,7.30692539]
[1750503586639,32.63806694,2439.3,2439.2,7.30692539]
[1750503586945,33.3922,2439.3,2439.2,7.30692539]
[1750503587846,33.3922,2439.3,2439.2,8.95434293]
[1750503587847,31.403,2439.3,2439.2,8.95434293]
[1750503588143,2.17614,2439.7,2439.5,0.81966]
[1750503588348,2.17614,2439.7,2439.6,0.81964]
[1750503588545,9.77102762,2439.7,2439.5,0.81965]
[1750503588744,1.15788762,2439.6,2439.5,0.81965]
[1750503589146,32.55988762,2439.6,2439.5,0.81965]
[1750503589940,32.55888762,2439.6,2439.5,7.30679539]
[1750503591447,31.401,2439.6,2439.5,7.30679539]
[1750503595153,2.1129,2439.8,2439.7,0.81961]
[1750503595354,33.37695884,2439.8,2439.7,7.30675539]
[1750503595554,33.37695884,2439.8,2439.7,0.81961]
[1750503596256,32.55735884,2439.8,2439.7,0.81961]
[1750503597551,7.59535884,2439.8,2439.7,0.81961]
[1750503597747,32.55735884,2439.8,2439.7,0.81961]
[1750503598864,33.37692884,2439.8,2439.7,0.81961]
[1750503599565,34.66212884,2439.8,2439.7,0.81961]
[1750503600466,0.81961,2439.7,2439.6,0.6588]
[1750503600665,2.44355884,2439.7,2439.6,1.47842]
[1750503601060,31.399,2439.8,2439.7,0.81961]
[1750503601266,33.37731226,2439.8,2439.7,7.30675539]
[1750503601769,32.55774226,2439.8,2439.7,7.30675539]
[1750503602668,32.55374226,2439.8,2439.7,7.30675539]
[1750503603960,36.2440598,2439.8,2439.2,3.27627599]
[1750503604167,2.4559899,2439.7,2439.4,6.48714539]
[1750503604465,0.81967,2439.5,2439.4,7.30683539]
[1750503604664,0.81974,2439.3,2439.2,4.09603599]
[1750503604867,24.956,2439.3,2439.2,4.02756]
[1750503605067,24.956,2439.3,2439.2,10.51470539]
[1750503605370,25.77574,2439.3,2439.2,9.69494539]
[1750503605865,24.956,2439.3,2439.2,10.51472539]
[1750503606170,24.955,2439.3,2439.2,11.20082539]
[1750503609568,0.81968,2439.5,2439.4,0.81971]
[1750503609771,32.20068,2439.5,2439.4,7.30685539]
[1750503610566,32.20068,2439.5,2439.4,0.81971]
[1750503612370,31.381,2439.5,2439.4,7.30685539]
[1750503612772,4.02747,2439.6,2439.5,0.81967]
[1750503612972,32.19867,2439.6,2439.5,7.30681539]
[1750503613174,32.19867,2439.6,2439.5,0.81967]
[1750503614276,0.81967,2439.6,2439.5,0.81967]
[1750503614477,32.19867,2439.6,2439.5,0.81967]
[1750503615176,33.36158884,2439.6,2439.5,0.81967]
[1750503615479,31.379,2439.6,2439.5,7.30681539]
[1750503616571,31.379,2439.6,2439.5,8.67341539]
[1750503616772,31.378,2439.6,2439.5,8.67341539]
[1750503616972,31.378,2439.6,2439.5,10.02051539]
[1750503619272,31.378,2439.6,2439.5,8.67341539]
[1750503619474,7.24558,2439.8,2439.7,0.81961]
[1750503619673,33.35878264,2439.8,2439.7,7.30675539]
[1750503619972,33.35878264,2439.8,2439.7,0.81961]
[1750503620378,33.35778264,2439.8,2439.7,0.81961]
[1750503622880,1.16320264,2439.8,2439.7,7.30675539]
[1750503623186,24.947,2439.8,2439.7,7.30675539]
[1750503623575,25.76657,2439.8,2439.7,7.30675539]
[1750503624188,26.93037956,2439.8,2439.7,7.30675539]
[1750503629386,26.11080956,2439.8,2439.7,7.30675539]
[1750503629586,24.947,2439.8,2439.7,7.30675539]
[1750503629886,25.76657,2439.8,2439.7,7.30675539]
[1750503631588,0.81957,2439.8,2439.7,7.30675539]
[1750503631889,25.76157,2439.8,2439.7,7.30675539]
[1750503635294,25.76157,2439.8,2439.7,7.37523138]
[1750503638295,25.75757,2439.8,2439.7,6.55562138]
[1750503638590,27.70697,2439.8,2439.7,6.55562138]
[1750503640594,27.70497,2439.8,2439.7,6.55562138]
[1750503641495,2.76897,2439.8,2439.7,6.55562138]
[1750503641684,27.70497,2439.8,2439.7,6.55562138]
[1750503643298,28.86976132,2439.8,2439.7,6.55562138]
[1750503644894,34.69760886,2439.8,2439.1,7.30353652]
[1750503645199,0.81984,2439.0,2438.9,1.49656]
[1750503645391,0.81984,2439.0,2438.9,6.48714539]
[1750503645392,25.75384,2439.0,2438.9,6.48714539]
[1750503645601,0.81988,2438.9,2438.8,4.70251]
[1750503645793,0.81988,2438.9,2438.8,3.2078]
[1750503645994,25.75386,2439.0,2438.8,7.30705539]
[1750503646196,25.75384,2439.0,2438.9,7.30702539]
[1750503646589,0.81989,2438.9,2438.7,14.40609556]
[1750503646902,0.81989,2438.9,2438.7,15.22601556]
[1750503647201,0.81989,2438.9,2438.8,6.48714539]
[1750503647391,0.81989,2438.9,2438.8,7.30705539]
[1750503647798,27.14886,2439.0,2438.9,0.81988]
[1750503647998,27.14886,2439.0,2438.9,7.30702539]
[1750503648197,26.329,2439.0,2438.7,12.75867802]
[1750503648496,26.329,2439.0,2438.8,7.30705539]
[1750503648497,2.88828,2438.9,2438.8,7.30705539]
[1750503648800,2.0684,2438.9,2438.8,7.30705539]
[1750503648995,25.75386,2439.0,2438.9,0.81988]
[1750503649196,0.81988,2438.9,2438.8,7.30703539]
[1750503649397,27.14887,2439.0,2438.9,0.81988]
[1750503651196,26.329,2439.0,2438.9,0.81988]
[1750503652903,27.14884,2439.0,2438.9,0.81988]
[1750503653103,26.329,2439.0,2438.9,0.81988]
[1750503654303,26.329,2439.0,2438.9,1.46168]
[1750503654708,27.14884,2439.0,2438.9,1.46168]
[1750503654906,0.81988,2438.9,2438.8,0.88836599]
[1750503655207,2.18938,2438.9,2438.8,7.37551138]
[1750503657002,8.60738,2438.9,2438.8,0.06847599]
[1750503657198,0.82004,2438.4,2438.3,0.6628]
[1750503657511,25.75304,2438.4,2438.3,0.6628]
[1750503657809,25.75304,2438.4,2438.3,7.14994539]
[1750503658502,24.933,2438.4,2438.3,7.97002539]
[1750503658704,25.75304,2438.4,2438.3,7.97002539]
[1750503659108,24.933,2438.4,2438.3,7.97002539]
[1750503660502,24.934,2438.4,2438.3,7.14994539]
[1750503660702,24.934,2438.4,2438.3,7.97002539]
[1750503661607,0.8199,2438.9,2438.8,0.88838599]
[1750503661816,32.1729,2438.9,2438.8,0.88838599]
[1750503662809,32.1729,2438.9,2438.8,0.06847599]
[1750503663305,35.3807,2438.9,2438.8,0.06847599]
[1750503663505,37.417,2438.9,2438.8,0.06847599]
[1750503664404,2.04983,2438.8,2438.3,0.702]
[1750503664602,24.933,2438.7,2438.4,6.48714539]
[1750503664807,24.933,2438.7,2438.4,7.30718539]
[1750503664808,0.82003,2438.5,2438.4,7.30718539]
[1750503665106,25.75303,2438.5,2438.4,6.48714539]
[1750503665306,27.15243,2438.5,2438.4,6.48714539]
[1750503665908,0.82004,2438.4,2438.3,1.52206]
[1750503666207,0.82004,2438.4,2438.3,0.82006]
[1750503666408,0.82004,2438.4,2438.3,6.48714539]
[1750503666409,2.21944,2438.4,2438.3,6.48714539]
[1750503667311,2.21947,2438.4,2438.2,4.67549]
[1750503667511,33.4016,2438.3,2438.2,4.67549]
[1750503667906,34.22168,2438.3,2438.2,4.67549]
[1750503668105,31.352,2438.3,2438.2,4.67549]
[1750503668302,0.82006,2438.4,2438.3,0.82008]
[1750503668507,0.82008,2438.3,2438.2,4.67549]
[1750503668705,0.82008,2438.3,2438.2,3.8554]
[1750503669107,2.17788,2438.3,2438.2,3.2078]
[1750503670808,0.82008,2438.3,2438.2,4.02791]
[1750503673510,0.82008,2438.3,2438.2,3.2078]
[1750503673721,0.82011,2438.2,2438.1,0.82013]
[1750503674015,25.75311,2438.2,2438.1,0.82013]
[1750503674219,25.75311,2438.2,2438.1,7.30727539]
[1750503674916,25.75311,2438.2,2438.1,6.48714539]
[1750503675217,25.75311,2438.2,2438.1,7.30729539]
[1750503675709,25.75311,2438.2,2438.0,1.49916]
[1750503675920,7.23215,2438.1,2438.0,7.16614539]
[1750503676218,0.82021,2437.9,2437.8,3.2078]
[1750503676407,25.75221,2437.9,2437.8,9.69494539]
[1750503677416,0.82025,2437.8,2437.7,0.82027]
[1750503677713,7.23225,2437.8,2437.7,0.82027]
[1750503677910,7.23225,2437.8,2437.7,7.30741539]
[1750503678217,7.23225,2437.8,2437.7,6.48714539]
[1750503678412,7.23225,2437.8,2437.7,7.30742539]
[1750503678618,7.23225,2437.8,2437.7,6.48714539]
[1750503678917,7.23225,2437.8,2437.7,7.30742539]
[1750503679315,7.23225,2437.8,2437.7,6.48714539]
[1750503679720,7.23225,2437.8,2437.7,7.30742539]
[1750503679917,7.23225,2437.8,2437.7,6.48714539]
[1750503680312,6.412,2437.8,2437.7,7.30742539]
[1750503680913,7.23225,2437.8,2437.7,7.30742539]
[1750503682622,3.2078,2438.2,2437.9,0.8202]
[1750503682819,0.82018,2438.0,2437.9,7.30734539]
[1750503683121,0.82018,2438.0,2437.9,0.8202]
[1750503687225,32.16518,2438.0,2437.9,0.8202]
[1750503690826,0.82021,2437.9,2437.8,0.88870599]
[1750503691231,0.82021,2437.9,2437.8,7.37585138]
[1750503694330,0.82021,2437.9,2437.8,8.05515138]
[1750503695031,32.1652,2438.0,2437.9,0.82021]
[1750503695333,32.1652,2438.0,2437.9,7.30735539]
[1750503695532,32.1652,2438.0,2437.9,0.82021]
[1750503697234,0.82021,2437.9,2437.8,0.74777599]
[1750503697625,0.82021,2437.9,2437.8,7.23492138]
[1750503698235,0.82021,2437.9,2437.8,8.05517138]
[1750503698625,0.82021,2437.9,2437.8,7.23492138]
[1750503699335,2.46762754,2437.9,2437.8,6.55562138]
[1750503699526,4.50192754,2437.9,2437.8,6.55562138]
[1750503699839,0.82031,2437.6,2437.5,0.6745]
[1750503700029,32.16031,2437.6,2437.5,7.16164539]
[1750503701922,32.16031,2437.6,2437.5,7.98199539]
[1750503702131,32.16031,2437.6,2437.5,7.16164539]
[1750503702629,32.16031,2437.6,2437.5,7.98199539]
[1750503702927,32.16031,2437.6,2437.5,7.16164539]
[1750503703131,31.333,2437.6,2437.5,0.82033]
[1750503703538,32.15334,2437.6,2437.5,0.82033]
[1750503704836,0.82034,2437.6,2437.5,0.82033]
[1750503705036,32.15534,2437.6,2437.5,0.82033]
[1750503707041,31.335,2437.6,2437.5,0.82033]
[1750503707232,0.8203,2437.7,2437.6,0.82031]
[1750503707527,32.1543,2437.7,2437.6,0.82031]
[1750503707937,0.82034,2437.6,2437.5,0.82033]
[1750503708140,32.15434,2437.6,2437.5,0.82033]
[1750503708334,32.15434,2437.6,2437.5,7.30747539]
[1750503710945,3.2078,2437.9,2437.6,0.82028]
[1750503711251,0.82028,2437.7,2437.6,0.82028]
[1750503711434,0.82028,2437.7,2437.6,0.88875599]
[1750503711634,0.82028,2437.7,2437.6,7.37590138]
[1750503712240,32.15328,2437.7,2437.6,7.37590138]
[1750503715237,0.82027,2437.8,2437.7,0.82028]
[1750503715437,32.15227,2437.8,2437.7,7.30742539]
[1750503716539,32.15127,2437.8,2437.7,7.30742539]
[1750503717342,32.15127,2437.8,2437.7,6.48714539]
[1750503717542,32.15127,2437.8,2437.7,7.30742539]
[1750503718245,32.15127,2437.8,2437.7,6.48714539]
[1750503719145,32.15127,2437.8,2437.7,7.30742539]
[1750503720645,32.14927,2437.8,2437.7,7.30742539]
[1750503721641,32.14927,2437.8,2437.7,6.48714539]
[1750503721843,32.14927,2437.8,2437.7,7.30742539]
[1750503724453,0.82027,2437.8,2437.7,7.30742539]
[1750503724649,32.14727,2437.8,2437.7,7.95252539]
[1750503724846,32.14827,2437.8,2437.7,7.95252539]
[1750503725052,32.14827,2437.8,2437.7,7.13224539]
[1750503725354,33.31369333,2437.8,2437.7,7.13224539]
[1750503725650,33.31369333,2437.8,2437.7,7.20072138]
[1750503726053,33.31369333,2437.8,2437.7,8.02100138]
[1750503727052,33.31369333,2437.8,2437.7,7.20072138]
[1750503727251,33.31369333,2437.8,2437.7,8.02100138]
[1750503727846,33.31369333,2437.8,2437.7,7.20072138]
[1750503730143,33.31369333,2437.8,2437.7,8.02100138]
[1750503730955,33.31369333,2437.8,2437.7,7.20072138]
[1750503731347,33.31369333,2437.8,2437.7,8.02100138]
[1750503732956,33.31369333,2437.8,2437.7,7.20072138]
[1750503734159,33.31369333,2437.8,2437.7,8.02100138]
[1750503734455,33.31369333,2437.8,2437.7,7.20072138]
[1750503735257,33.31369333,2437.8,2437.7,8.02100138]
[1750503735457,33.31369333,2437.8,2437.7,7.20072138]
[1750503740963,33.31369333,2437.8,2437.7,8.02100138]
[1750503741165,33.31369333,2437.8,2437.7,7.20072138]
[1750503743268,0.82038,2437.4,2437.3,3.2078]
[1750503743454,24.911,2437.4,2437.3,4.02821]
[1750503743659,25.73138,2437.4,2437.3,9.69494539]
[1750503744058,25.73138,2437.4,2437.3,10.51535539]
[1750503744877,24.911,2437.4,2437.3,10.51535539]
[1750503746065,25.73138,2437.4,2437.3,10.51535539]
[1750503746670,24.911,2437.4,2437.3,10.51535539]
[1750503746964,24.91,2437.4,2437.3,6.48714539]
[1750503747165,24.91,2437.4,2437.3,8.66675539]
[1750503748265,6.399,2437.5,2437.4,0.82038]
[1750503748571,3.2078,2437.8,2437.7,0.82028]
[1750503748765,36.50339278,2437.8,2437.7,7.30742539]
[1750503748965,36.50339278,2437.8,2437.7,7.37590138]
[1750503749364,1.98759278,2437.8,2437.7,7.37590138]
[1750503749668,33.29459278,2437.8,2437.7,7.37590138]
[1750503749858,33.29459278,2437.8,2437.7,6.55562138]
[1750503751570,33.29459278,2437.8,2437.7,7.37590138]
[1750503754571,33.29459278,2437.8,2437.7,6.55562138]
[1750503754870,33.29459278,2437.8,2437.7,7.37590138]
[1750503755570,33.29459278,2437.8,2437.7,6.55562138]
[1750503755758,33.29459278,2437.8,2437.7,7.37590138]
[1750503758976,33.29459278,2437.8,2437.7,6.55562138]
[1750503759578,33.29459278,2437.8,2437.7,7.37590138]
[1750503760078,33.29459278,2437.8,2437.7,6.55562138]
[1750503761879,33.29459278,2437.8,2437.7,7.37590138]
[1750503762379,33.29459278,2437.8,2437.7,6.55562138]
[1750503763182,33.29459278,2437.8,2437.7,7.37590138]
[1750503765078,1.98759278,2437.8,2437.7,7.37590138]
[1750503765579,33.27659278,2437.8,2437.7,7.37590138]
[1750503766478,1.98759278,2437.8,2437.7,7.37590138]
[1750503766678,32.45634278,2437.8,2437.7,7.37590138]
[1750503766979,33.27659278,2437.8,2437.7,7.37590138]
[1750503768480,33.27659278,2437.8,2437.7,6.55562138]
[1750503769483,34.58109278,2437.8,2437.7,6.55562138]
[1750503769780,33.76084278,2437.8,2437.3,3.2078]
[1750503769972,0.82038,2437.4,2437.3,3.2078]
[1750503770177,32.10638,2437.4,2437.3,3.2078]
[1750503770375,32.10638,2437.4,2437.3,9.69494539]
[1750503770376,33.41088,2437.4,2437.3,9.69494539]
[1750503770885,33.41088,2437.4,2437.3,10.51535539]
[1750503771385,34.07488,2437.4,2437.3,10.51535539]
[1750503772478,34.07488,2437.4,2437.3,9.69494539]
[1750503773280,34.07488,2437.4,2437.3,3.2078]
[1750503773486,34.07488,2437.4,2437.3,4.02821]
[1750503773890,34.07488,2437.4,2437.3,3.2078]
[1750503774084,0.82052,2437.0,2436.9,3.2078]
[1750503774389,32.10552,2437.0,2436.9,3.2078]
[1750503774686,32.10552,2437.0,2436.9,9.69494539]
[1750503774891,34.19802,2437.0,2436.9,9.69494539]
[1750503775483,34.19802,2437.0,2436.9,3.2078]
[1750503775780,0.82062,2436.7,2436.6,1.46043]
[1750503775981,25.71662,2436.7,2436.6,0.82063]
[1750503776186,24.896,2436.7,2436.6,7.30777539]
[1750503776885,31.286,2436.7,2436.6,7.30777539]
[1750503777087,32.6845,2436.7,2436.6,7.30777539]
[1750503777286,33.50512,2436.7,2436.6,7.30777539]
[1750503777782,32.6845,2436.7,2436.6,7.30777539]
[1750503778290,33.50512,2436.7,2436.6,7.30777539]
[1750503778684,32.6845,2436.7,2436.6,7.30777539]
[1750503779286,33.50512,2436.7,2436.6,7.30777539]
[1750503779480,32.6845,2436.7,2436.6,7.30777539]
[1750503780590,33.50512,2436.7,2436.6,7.30777539]
[1750503780796,0.82065,2436.6,2436.5,3.2078]
[1750503780995,2.88015,2436.6,2436.5,9.69494539]
[1750503781491,2.88015,2436.6,2436.5,3.2078]
[1750503781691,2.0595,2436.6,2436.2,3.8571]
[1750503781890,0.82074,2436.4,2436.3,7.30788539]
[1750503782092,7.21174,2436.4,2436.3,7.30788539]
[1750503782294,0.82075,2436.3,2436.2,4.67787]
[1750503782594,24.897,2436.3,2436.2,4.67787]
[1750503782793,24.897,2436.3,2436.2,11.16501539]
[1750503783192,0.82056,2436.9,2436.8,0.82056]
[1750503783389,31.287,2436.9,2436.8,0.82058]
[1750503783894,3.2078,2437.1,2437.0,0.82052]
[1750503784198,3.2078,2437.8,2437.2,2.05112]
[1750503784387,24.896,2437.7,2437.6,6.48714539]
[1750503784594,24.896,2437.7,2437.6,8.95487293]
[1750503784894,9.5988,2437.8,2437.7,0.82028]
[1750503785191,3.2078,2437.8,2437.7,7.30742539]
[1750503785400,34.4958,2437.8,2437.7,7.30742539]
[1750503786397,0.82028,2437.7,2437.5,0.82033]
[1750503786594,1.2797,2437.7,2437.6,7.30745539]
[1750503786897,26.1767,2437.7,2437.6,7.30745539]
[1750503787196,26.1767,2437.7,2437.6,0.82031]
[1750503787395,26.99698,2437.7,2437.5,0.82033]
[1750503787596,26.1767,2437.7,2437.6,7.30745539]
[1750503787991,26.1767,2437.7,2437.6,0.82031]
[1750503788195,26.99698,2437.7,2437.5,0.82033]
[1750503788497,26.99698,2437.7,2437.6,6.48714539]
[1750503788998,26.99698,2437.7,2437.5,0.82033]
[1750503789199,26.99698,2437.7,2437.6,6.48714539]
[1750503789499,26.1767,2437.7,2437.6,6.48714539]
[1750503789687,26.1767,2437.7,2437.6,0.82031]
[1750503790200,26.99698,2437.7,2437.6,0.82031]
[1750503790399,26.1767,2437.7,2437.6,0.82031]
[1750503790894,26.99698,2437.7,2437.6,0.82031]
[1750503793398,3.2078,2437.8,2437.7,0.82028]
[1750503793598,34.4908,2437.8,2437.7,0.82028]
[1750503794800,3.2078,2437.8,2437.7,0.82028]
[1750503795100,34.4858,2437.8,2437.7,0.82028]
[1750503795697,35.30605,2437.8,2437.7,0.82028]
[1750503795905,34.4858,2437.8,2437.7,0.82028]
[1750503796205,35.30605,2437.8,2437.7,0.82028]
[1750503796795,34.4858,2437.8,2437.7,0.82028]
[1750503797000,35.30605,2437.8,2437.7,0.82028]
[1750503797303,34.4858,2437.8,2437.7,7.30742539]
[1750503797898,35.30605,2437.8,2437.7,7.30742539]
[1750503798501,7.20525,2437.8,2437.7,7.30742539]
[1750503798805,32.09725,2437.8,2437.7,0.82028]
[1750503799012,0.82028,2437.7,2437.6,0.8203]
[1750503799494,0.82028,2437.7,2437.6,7.30744539]
[1750503799695,33.46427,2437.8,2437.6,7.30744539]
[1750503799897,33.46427,2437.8,2437.7,6.48714539]
[1750503800099,33.46427,2437.8,2437.7,0.82028]
[1750503800405,0.82029,2437.7,2437.6,0.82029]
[1750503800706,0.82029,2437.7,2437.6,7.30743539]
[1750503800910,0.82033,2437.6,2437.5,0.82033]